[Event "ITT 1st Parada Jamundi 2022"]
[Site "Jamundi Valle"]
[Date "2022.12.07"]
[Round "1.1"]
[White "Henriquez Villagra, Cristobal"]
[Black "Lopez Rayo, Santiago"]
[Result "1-0"]
[ECO "B51"]
[WhiteElo "2587"]
[BlackElo "2300"]
[Annotator "TA"]
[PlyCount "159"]
[EventDate "2022.12.05"]
[EventType "swiss"]
[EventCountry "COL"]
[SourceTitle "playchess.com"]
[Source "ChessBase"]
[SourceQuality "1"]
[TimeControl "5400+30"]

{[%evp 9,159,5,15,12,12,8,21,12,21,22,28,16,27,31,14,24,41,7,20,0,0,0,0,-14,0,0,0,0,0,0,3,-14,-15,-11,0,-53,-43,-65,-72,-64,-56,-75,-77,-101,-108,-129,-137,-128,-137,-131,-126,-112,-93,-127,-29,-24,-23,-21,-20,-29,-14,-19,0,0,0,0,0,0,0,0,8,8,10,0,0,0,0,-14,0,0,8,8,8,8,8,8,8,8,38,8,8,8,13,32,222,8,8,8,50,75,297,297,297,289,289,289,289,289,499,492,1077,1062,1414,1372,1611,1650,1474,1261,1681,1660,1675,1618,2432,2152,2131,1971,2614,759,1161,1474,1404,1070,1268,1194,1124,1096,1575,1335,5793,3370,29980,29981,29981,29982,29982,29983,29985,29985,29992,29993,29993,29994]} 1. e4 {[%emt 0:00:03]} c5 {[%emt 0:00:10]} 2. Nf3 {[%emt 0:00:04]} d6 {[%emt 0:00:08]} 3. Bb5+ {[%emt 0:00:23]} Nd7 {[%emt 0:00:17]} 4. a4 {[%emt 0:00:11]} Ngf6 {[%emt 0:00:41]} 5. Nc3 {[%emt 0:00:07]} e6 {[%emt 0:01:12]} 6. O-O {[%emt 0:01:00] B51: Sicilian: Moscow Variation (3 Bb5+) without 3...Bd7.} Be7 {[%emt 0:00:20]} 7. a5 {[%emt 0:04:09]} a6 {[%emt 0:03:27]} 8. Bc4 {[%emt 0:01:37] The position is equal.} b5 {[%emt 0:06:31]} 9. axb6 {[%emt 0:00:07]} Nxb6 {[%emt 0:00:16]} 10. Ba2 {[%emt 0:03:48]} Bb7 {[%emt 0:02:43]} 11. Re1 {[%emt 0:04:23]} O-O {[%emt 0:00:34]} 12. d3 {[%emt 0:00:20] [#]} h6 $146 {[%emt 0:12:25]} ({Predecessor:} 12... d5 13. e5 Ne8 14. d4 Nc7 15. Ne2 f6 16. c3 f5 17. g3 Qe8 18. h4 h6 {½-½ (71) Tekeyev,Z (2396)-Han,Y (2307) Chess.com INT 2020}) 13. Bd2 {[%emt 0:07:03]} Nfd7 {[%emt 0:04:57]} 14. Ne2 {[%emt 0:07:40][%cal Bc3e2,Be2f4,Bf4h5,Bh5g3][%mdl 32]} a5 {[%emt 0:02:15]} 15. Nf4 {[%emt 0:00:16][%cal Oa2e6]} a4 {[%emt 0:05:03]} 16. Rb1 {[%emt 0:08:35]} Kh7 {[%emt 0:03:12]} 17. Nh5 {[%emt 0:04:48]} Nf6 {[%emt 0:05:44]} 18. Ng3 {[%emt 0:00:05]} Qc7 {[%emt 0:00:16]} 19. Qc1 {[%emt 0:05:47]} Ra7 {[%emt 0:04:42]} 20. Bc3 {[%emt 0:02:10]} Rc8 {[%emt 0:06:20]} 21. Qf4 {[%emt 0:07:53][%cal Og3h5]} c4 {[%emt 0:11:06]} 22. Bxf6 {[%emt 0:07:49]} ({White should play} 22. dxc4 $11 Nbd7 23. Qe3) 22... Bxf6 $15 {[%emt 0:00:36]} 23. Nh5 {[%emt 0:00:06]} Bd8 {[%emt 0:01:54]} 24. dxc4 {[%emt 0:05:21]} e5 {[%emt 0:01:57]} 25. Qe3 {[%emt 0:05:14]} Ba6 {[%emt 0:00:45][%cal Bb7a6,Ba6c4,Bc4e6][%mdl 32]} 26. b3 {[%emt 0:06:59]} axb3 {[%emt 0:02:19]} 27. Bxb3 {[%emt 0:00:12]} Nxc4 {[%emt 0:01:39]} 28. Bxc4 {[%emt 0:01:33]} Bxc4 {[%emt 0:00:02]} 29. Ng3 {[%emt 0:00:12]} g6 {[%emt 0:00:35] Inhibits Nf5.} 30. h4 {[%emt 0:00:27]} Be6 {[%emt 0:01:33] A strong pair of Bishops.} 31. h5 {[%emt 0:00:06]} Qc5 {[%emt 0:01:26]} (31... Ra2 $17 32. hxg6+ fxg6) 32. hxg6+ $1 $11 {[%emt 0:02:25]} fxg6 {[%emt 0:00:01]} 33. Nf1 $1 {[%emt 0:00:54]} g5 {[%emt 0:06:26]} (33... Rc6 {simplifies} 34. Qxc5 Rxc5 35. Ne3 Rc6) 34. Red1 {[%emt 0:00:24]} Be7 {[%emt 0:01:38]} 35. Ne1 {[%emt 0:00:35]} Qxe3 {[%emt 0:05:28]} 36. Nxe3 {[%emt 0:00:04]} g4 {[%emt 0:00:20]} 37. Rb6 {[%emt 0:01:51]} Rac7 {[%emt 0:03:10]} 38. Ra1 {[%emt 0:04:01]} Kg6 {[%emt 0:00:58]} 39. Raa6 {[%emt 0:00:53]} Bc4 {[%emt 0:02:09] Inhibits Nd3.} 40. Ra5 {[%emt 0:02:40]} Be6 {[%emt 0:00:16]} 41. Rxe5 {[%emt 0:00:49]} dxe5 {[%emt 0:00:56]} 42. Rxe6+ {[%emt 0:00:02]} Kf7 {[%emt 0:00:45]} 43. Rxe5 {[%emt 0:00:01]} Rc5 {[%emt 0:01:24]} 44. Nxg4 {[%emt 0:01:50]} Rxe5 {[%emt 0:00:24]} 45. Nxe5+ {[%emt 0:00:04][%mdl 4096] Endgame KRB-KNN} Ke6 {[%emt 0:00:16]} 46. N5d3 {[%emt 0:00:12]} Rc4 {[%emt 0:01:25]} 47. f3 {[%emt 0:00:19][%cal Bf2f3,Bf3f4][%mdl 32]} Bd6 {[%emt 0:00:48]} 48. Kf2 {[%emt 0:00:05]} Bc7 {[%emt 0:01:35]} 49. f4 {[%emt 0:02:37]} Ba5 {[%emt 0:00:58]} 50. Ke3 {[%emt 0:00:26]} Bb6+ {[%emt 0:00:27]} 51. Kf3 {[%emt 0:00:05]} h5 $2 {[%emt 0:00:48] [#]} (51... Ba5 $14) 52. g3 $2 {[%emt 0:00:49]} ({White has to play} 52. f5+ $1 $18 Ke7 53. Nf4) 52... Kf6 {[%emt 0:00:34]} 53. e5+ {[%emt 0:00:45]} Kf5 {[%emt 0:00:31]} 54. Ng2 {[%emt 0:00:04]} Rxc2 $2 {[%emt 0:00:25] White leaves nothing to chance now.} (54... Ke6 $16) 55. Nh4+ $18 {[%emt 0:00:03]} Ke6 {[%emt 0:00:01]} 56. f5+ {[%emt 0:00:05]} Kf7 {[%emt 0:00:30]} 57. Nf4 {[%emt 0:00:43]} Rc3+ {[%emt 0:00:22] [#]} 58. Kg2 $1 {[%emt 0:00:05] Strongly threatening e6+.} (58. Ke4 Re3+ 59. Kd5 Bc7 $11) 58... Rc2+ $2 {[%emt 0:00:11]} (58... Bd8 {is a better defense.} 59. e6+ (59. Nxh5 Bxh4 60. gxh4 Re3 $16) 59... Kg7) 59. Kh3 {[%emt 0:00:11]} Bd4 {[%emt 0:01:37]} (59... Rc5 $142 60. e6+ (60. Nxh5 Rxe5 61. g4 Re8 $11) 60... Ke7 61. Nxh5 Kd6) 60. e6+ {[%emt 0:01:42]} ({Weaker is} 60. Nxh5 Bxe5 61. Nf3 Bf6 $11) 60... Ke8 {[%emt 0:00:03]} 61. Nxh5 {[%emt 0:00:15]} Re2 {[%emt 0:00:57]} 62. Ng6 {[%emt 0:00:28]} Re4 {[%emt 0:00:26]} 63. Kg2 {[%emt 0:00:49]} Bc3 {[%emt 0:00:33]} 64. Kf3 {[%emt 0:00:34]} Re1 {[%emt 0:00:10]} 65. g4 {[%emt 0:00:05][%cal Bg3g4,Bg4g5][%mdl 32]} Rf1+ {[%emt 0:00:36]} 66. Kg2 {[%emt 0:00:16]} Re1 {[%emt 0:00:06]} 67. g5 {[%emt 0:00:55]} Bd2 {[%emt 0:00:13]} 68. Nf6+ {[%emt 0:01:20]} (68. f6 $142 Bb4 69. Ngf4) 68... Kd8 {[%emt 0:00:01]} 69. Nh7 {[%emt 0:00:25]} Bb4 {[%emt 0:00:46]} 70. Kf2 {[%emt 0:00:52][%cal Oe6e7] e7+! is the strong threat.} Rh1 {[%emt 0:01:19] Prevents e7+.} 71. Nf6 {[%emt 0:00:12]} Bc5+ {[%emt 0:00:38]} 72. Kf3 {[%emt 0:00:43]} Rg1 {[%emt 0:00:32]} 73. Ne5 {[%emt 0:00:34]} Ke7 {[%emt 0:00:40]} 74. Nd5+ {[%emt 0:01:08]} Ke8 {[%emt 0:00:01]} 75. g6 {[%emt 0:01:09] White mates.} Rf1+ {[%emt 0:00:17]} 76. Kg4 {[%emt 0:00:19]} Rg1+ {[%emt 0:00:45]} 77. Kh5 {[%emt 0:00:14]} Bd6 {[%emt 0:00:56]} 78. Ng4 {[%emt 0:00:28]} Kf8 {[%emt 0:00:29]} 79. f6 {[%emt 0:00:11]} Rh1+ {[%emt 0:00:21]} 80. Kg5 {[%emt 0:00:03] Weighted Error Value: White=0.12 (very precise) /Black=0.25 (precise)} 1-0

[Event "ITT 1st Parada Jamundi 2022"]
[Site "Jamundi Valle"]
[Date "2022.12.07"]
[Round "1.2"]
[White "Mateus, Alejandro"]
[Black "Delgado Ramirez, Neuris"]
[Result "1/2-1/2"]
[ECO "B96"]
[WhiteElo "2308"]
[BlackElo "2572"]
[Annotator "TA"]
[PlyCount "115"]
[EventDate "2022.12.05"]
[EventType "swiss"]
[EventCountry "COL"]
[SourceTitle "playchess.com"]
[Source "ChessBase"]
[SourceQuality "1"]
[TimeControl "5400+30"]

{[%evp 14,115,22,16,43,22,79,71,112,9,43,22,25,22,25,30,19,0,0,0,0,0,35,6,10,4,20,0,27,23,27,6,10,12,18,9,33,8,16,-8,-8,-8,0,-28,-24,-37,-10,-10,-8,-10,-8,-3,0,0,0,0,0,0,0,0,0,0,0,0,0,-3,-10,-11,0,0,0,0,0,0,0,0,0,0,0,0,0,0,0,0,36,0,0,0,0,0,0,0,0,0,0,0,0,0,0,0,0,0,0,0]} 1. e4 {[%emt 0:00:06]} c5 {[%emt 0:00:15]} 2. Nf3 {[%emt 0:00:13]} d6 {[%emt 0:00:08]} 3. d4 {[%emt 0:00:16]} cxd4 {[%emt 0:00:10]} 4. Nxd4 {[%emt 0:00:07]} Nf6 {[%emt 0:00:04]} 5. Nc3 {[%emt 0:00:12]} a6 {[%emt 0:00:04]} 6. Bg5 {[%emt 0:00:28]} e6 {[%emt 0:01:22]} 7. f4 {[%emt 0:00:25]} h6 {[%emt 0:00:22]} 8. Bh4 {[%emt 0:00:31]} Nbd7 {[%emt 0:00:14] B96: Sicilian Najdorf: 6 Bg5 e6 7 f4, lines other than 7...Qb6 and 7...Be7.} 9. Qe2 {[%emt 0:04:47]} Be7 {[%emt 0:01:03]} (9... e5 $11 {keeps the balance.}) 10. O-O-O $16 {[%emt 0:05:27] White is more active.} Qa5 {[%emt 0:01:41] White is better.} 11. Nf3 {[%emt 0:06:16]} (11. Kb1 $16) 11... e5 {[%emt 0:02:57]} (11... b5 $5 {[%cal Rb5b4]}) 12. fxe5 {[%emt 0:04:34]} Nxe5 {[%emt 0:00:57]} 13. Kb1 {[%emt 0:04:45]} Be6 {[%emt 0:00:41]} 14. Nxe5 {[%emt 0:03:29]} Qxe5 {[%emt 0:04:52] [#]} 15. Nd5 $146 {[%emt 0:15:40]} ({Predecessor:} 15. Qe1 O-O 16. Bf2 Rfe8 17. a3 Qa5 18. Bd4 Nd7 19. Qg3 Qg5 20. Qf2 Rac8 21. h4 {½-½ (34) Zajontz,R (2491)-Firnhaber,I (2469) ICCF email 2019}) 15... Nxd5 {[%emt 0:07:27]} 16. exd5 {[%emt 0:00:35] [#] aiming for Bxe7.} Qxe2 {[%emt 0:00:54]} 17. Bxe2 {[%emt 0:00:39] Threatens to win with Bxe7.} Bd7 {[%emt 0:00:04]} (17... Bf5 $5 {[%cal Re7h4]} 18. Bg3 Kd7 $11) 18. Bxe7 {[%emt 0:02:23]} Kxe7 {[%emt 0:00:03]} 19. Rde1 {[%emt 0:02:29]} Kf8 {[%emt 0:00:15]} 20. Bd3 {[%emt 0:02:18]} g6 {[%emt 0:02:55]} 21. c4 {[%emt 0:01:50]} f5 {[%emt 0:01:03]} 22. h4 {[%emt 0:08:50]} Kf7 {[%emt 0:03:41]} 23. Kc2 {[%emt 0:02:42]} Kf6 {[%emt 0:01:46]} 24. Kc3 {[%emt 0:01:05]} a5 {[%emt 0:00:30]} 25. Re2 {[%emt 0:02:22]} Rae8 {[%emt 0:00:11]} 26. Rhe1 {[%emt 0:01:19]} Rxe2 {[%emt 0:00:06]} 27. Rxe2 $11 {[%emt 0:00:04][%mdl 4096] Endgame KRB-KRB} g5 {[%emt 0:00:06]} 28. hxg5+ {[%emt 0:05:23]} hxg5 {[%emt 0:00:08]} 29. b4 {[%emt 0:00:54]} axb4+ {[%emt 0:02:24]} 30. Kxb4 {[%emt 0:00:15]} Ra8 {[%emt 0:04:08]} 31. Kc3 {[%emt 0:03:47]} f4 {[%emt 0:01:33]} 32. Rb2 {[%emt 0:01:25]} Bf5 {[%emt 0:00:50]} 33. Bxf5 {[%emt 0:05:23]} Kxf5 {[%emt 0:02:24]} 34. Rxb7 {[%emt 0:04:04]} Rxa2 {[%emt 0:00:03] KR-KR} 35. Rf7+ {[%emt 0:00:15]} Kg4 {[%emt 0:00:39]} 36. c5 {[%emt 0:05:41]} dxc5 {[%emt 0:02:10]} 37. d6 {[%emt 0:00:06]} Ra4 {[%emt 0:00:07]} (37... Rxg2 $2 38. d7 $18) 38. d7 {[%emt 0:02:24]} Rd4 {[%emt 0:00:05] Inhibits d8Q.} 39. Rg7 {[%emt 0:00:24]} Kf5 {[%emt 0:05:25]} 40. Rf7+ {[%emt 0:01:27]} Kg4 {[%emt 0:04:11]} 41. Rg7 {[%emt 0:00:13]} Kh4 {[%emt 0:00:03]} ({Reject} 41... Kf5 42. Kc2 $15) 42. Rh7+ {[%emt 0:03:06]} Kg3 {[%emt 0:03:42]} 43. Rh3+ {[%emt 0:00:11]} Kxg2 {[%emt 0:00:02]} 44. Rd3 {[%emt 0:00:07]} Rxd7 {[%emt 0:00:06]} 45. Rxd7 {[%emt 0:00:04] [#] Rg7 would kill now. KR-K3P} g4 {[%emt 0:00:05]} (45... f3 $5 46. Rg7 $8 f2 47. Rxg5+ Kf3 48. Rf5+ (48. Rxc5 $2 {is the wrong capture.} Kg4 $19) 48... Kg2 $11) 46. Rd2+ {[%emt 0:02:47]} Kf3 {[%emt 0:03:03]} 47. Rd3+ {[%emt 0:01:16]} Ke2 {[%emt 0:00:28] And now ...f3 would win.} 48. Rd2+ {[%emt 0:00:39]} Ke1 {[%emt 0:00:32] Strongly threatening ...f3.} (48... Ke3 $5 49. Rd3+ $8 Kf2 50. Rd2+ Ke3 51. Rd3+ Kf2 52. Rd2+ Ke3 $11) 49. Rg2 {[%emt 0:00:42][%cal Og2c2]} (49. Rc2 $5 {[%cal Rc3d3]} g3 50. Kd3 $14) 49... g3 {[%emt 0:00:35] The position is equal.} 50. Kd3 {[%emt 0:00:02] Intending Ke4 and mate.} Kf1 {[%emt 0:00:14]} 51. Rc2 {[%emt 0:00:38][%cal Od3e4]} g2 {[%emt 0:03:18] White must now prevent ...f3.} 52. Ke4 {[%emt 0:00:22][%cal Oe4f3] Inhibits f3.} g1=Q {[%emt 0:01:13] ( -> ...Qg6+)} ({Much less strong is} 52... f3 53. Kxf3 g1=N+ 54. Ke3 $14) 53. Rc1+ {[%emt 0:00:07]} Kf2 {[%emt 0:00:04]} 54. Rxg1 {[%emt 0:00:05]} Kxg1 {[%emt 0:00:03]} 55. Kxf4 {[%emt 0:00:06][%cal Be4f4,Bf4e3,Be3d3,Bd3c2][%mdl 32]} c4 {[%emt 0:00:42]} 56. Ke3 {[%emt 0:00:14]} c3 {[%emt 0:00:05]} 57. Kd3 {[%emt 0:00:03]} c2 {[%emt 0:00:05]} 58. Kxc2 {[%emt 0:00:03] Weighted Error Value: White=0.10 (very precise) /Black=0.08 (flawless)} 1/2-1/2

[Event "ITT 1st Parada Jamundi 2022"]
[Site "Jamundi Valle"]
[Date "2022.12.07"]
[Round "1.3"]
[White "Cruz, Cristhian"]
[Black "Malka, Samuel"]
[Result "1-0"]
[ECO "D36"]
[WhiteElo "2552"]
[BlackElo "2265"]
[Annotator "TA"]
[PlyCount "79"]
[EventDate "2022.12.05"]
[EventType "swiss"]
[EventCountry "COL"]
[SourceTitle "playchess.com"]
[Source "ChessBase"]
[SourceQuality "1"]
[TimeControl "5400+30"]

{[%evp 18,79,28,22,18,18,25,26,24,26,21,19,41,41,26,18,25,40,51,21,73,47,40,43,60,21,41,50,53,47,29,0,0,-8,0,0,0,0,0,0,125,132,181,173,613,19,17,35,29,95,580,523,983,949,29976,29977,29977,29978,29973,29974,29974,29961,29960,29961]} 1. d4 {[%emt 1:31:00]} d5 {[%emt 0:00:30]} 2. c4 {[%emt 0:00:00]} e6 {[%emt 0:00:05]} 3. Nc3 {[%emt 0:00:00]} Nf6 {[%emt 0:00:10]} 4. cxd5 {[%emt 0:00:00]} exd5 {[%emt 0:00:07]} 5. Bg5 {[%emt 0:00:00]} c6 {[%emt 0:00:14]} 6. Qc2 {[%emt 0:00:00]} h6 {[%emt 0:01:00]} 7. Bh4 {[%emt 0:00:00]} Be7 {[%emt 0:00:42]} 8. e3 {[%emt 0:00:00]} O-O {[%emt 0:00:49]} 9. Bd3 {[%emt 0:00:00]} Re8 {[%emt 0:00:39]} 10. Nge2 {[%emt 0:00:00]} a5 {[%emt 0:01:42] D36: Queen's Gambit Declined: Exchange Variation: Main line (5 Bg5 c6 6 Qc2).} 11. a3 $5 {[%emt 0:00:00][%mdl 4] A promising side line.} Na6 {[%emt 0:01:18]} 12. O-O {[%emt 0:00:00]} Nc7 {[%emt 0:01:31] White has an edge.} 13. Rad1 {[%emt 0:00:00]} Ne6 {[%emt 0:16:59]} 14. Rfe1 {[%emt 0:00:00] [#]} g6 $146 {[%emt 0:09:33]} ({Predecessor:} 14... Bd7 15. Bg3 Rc8 16. h3 Nh5 17. Be5 b5 18. Qb1 Bf8 19. e4 dxe4 20. Nxe4 c5 {½-½ (33) Huber,M (2351)-Kuhne,D (2453) GER email 2020}) 15. f3 {[%emt 0:00:00]} b5 {[%emt 0:07:54][%cal Bb7b5,Bb5b4][%mdl 32]} 16. Kh1 {[%emt 0:00:00]} Ng7 {[%emt 0:07:27]} 17. Bf2 {[%emt 0:00:00]} Ba6 {[%emt 0:03:16]} 18. Bg1 {[%emt 0:00:00]} a4 {[%emt 0:14:33]} (18... Bf8 $11) 19. e4 $16 {[%emt 0:00:00]} b4 {[%emt 0:00:39]} 20. Bxa6 {[%emt 0:00:00]} Rxa6 {[%emt 0:01:38]} 21. Nxa4 {[%emt 0:00:00]} Qa5 {[%emt 0:04:50]} 22. Nc5 {[%emt 0:00:00]} Bxc5 {[%emt 0:00:35]} 23. dxc5 {[%emt 0:00:00] And now Bd4 would win.} dxe4 {[%emt 0:02:50]} 24. Bd4 {[%emt 0:00:00]} (24. axb4 {simplifies} Qxb4 25. Nd4 exf3 26. Rxe8+ Nfxe8 27. Nxf3 Ra2 28. Rb1) 24... exf3 $1 {[%emt 0:12:29]} 25. gxf3 {[%emt 0:00:24]} Nd5 {[%emt 0:01:56]} (25... Nfh5 {simplifies} 26. axb4 Qxb4 27. Qc3 Qxc3 28. Bxc3 Ne6) 26. Qd2 $1 {[%emt 0:02:35]} Kh7 {[%emt 0:03:14]} (26... bxa3 $2 27. Qxh6 f6 28. Qxg6 $18) ({Don't do} 26... Nf5 27. Ng3 Rxe1+ 28. Rxe1 Nxg3+ 29. hxg3 $16) 27. Bxg7 {[%emt 0:04:58]} Kxg7 {[%emt 0:00:22]} 28. Qd4+ {[%emt 0:00:03]} Kh7 {[%emt 0:01:16]} (28... f6 $11 {remains equal.}) 29. Nf4 {[%emt 0:00:18]} Rd8 {[%emt 0:06:01]} (29... Rxe1+ $2 30. Rxe1 Qd8 31. Nxd5 (31. axb4 $2 {is the wrong capture.} Qh4 $19) 31... cxd5 32. axb4) 30. axb4 {[%emt 0:00:53]} Qc7 {[%emt 0:00:00] [#]} (30... Qa4) 31. b5 $2 {[%emt 0:02:18]} ({White has to play} 31. Nh5 $1 $18 {[%mdl 512]} gxh5 32. Qd3+ Kg7 33. Qxa6) 31... Raa8 $11 {[%emt 0:00:05]} 32. Nxd5 $40 {[%emt 0:00:09][%mdl 128] White has some attack.} Rxd5 {[%emt 0:00:10]} 33. Qf6 {[%emt 0:00:07] Rxd5 is the strong threat.} Rxd1 {[%emt 0:00:18][%mdl 8192] This move loses the game for Black.} (33... Rf5 $16 34. Re7 (34. Qxc6 Rxc5 35. Qxc7 Rxc7 $11) 34... Rxf6 35. Rxc7 cxb5) 34. Rxd1 $18 {[%emt 0:00:05]} cxb5 $16 {[%emt 0:02:04][%mdl 4096] Endgame [#] KQR-KQR} 35. c6 $1 {[%emt 0:00:25] Rd7 would kill now.} Rf8 {[%emt 0:00:32]} 36. Rd7 {[%emt 0:00:11] White mates.} Qa5 {[%emt 0:00:13]} 37. Rxf7+ {[%emt 0:00:06]} Rxf7 {[%emt 0:00:05]} 38. Qxf7+ {[%emt 0:00:03]} Kh8 {[%emt 0:00:04]} 39. Qf8+ {[%emt 0:00:14]} Kh7 {[%emt 0:00:05]} 40. Qe7+ {[%emt 0:00:10] Weighted Error Value: White=0.29 (precise) /Black=0.73} 1-0

[Event "ITT 1st Parada Jamundi 2022"]
[Site "Jamundi Valle"]
[Date "2022.12.07"]
[Round "1.4"]
[White "Zuluaga Mancilla, Cesar"]
[Black "Cardoso Cardoso, Jose Gabriel"]
[Result "0-1"]
[ECO "D02"]
[WhiteElo "2230"]
[BlackElo "2483"]
[Annotator "TA"]
[PlyCount "106"]
[EventDate "2022.12.05"]
[EventType "swiss"]
[EventCountry "COL"]
[SourceTitle "playchess.com"]
[Source "ChessBase"]
[SourceQuality "1"]
[TimeControl "5400+30"]

{[%evp 9,106,20,28,14,15,14,18,19,81,59,90,0,0,-21,-17,-25,-29,-29,-29,-32,-29,-31,-33,-39,-29,-35,-31,-31,-26,-24,-22,-62,-55,-62,-59,-62,-59,-58,-43,-73,-66,-118,-126,-108,-112,-122,-119,-118,-89,-200,-199,-209,-197,-228,-228,-228,-228,-228,-227,-227,-171,-161,-152,-146,-147,-29965,-29966,-29957,-29967,-29966,-29968,-29968,-29970,-29966,-29967,-29976,-29972,-29979,-29980,-29981,-29982,-29982,-29983,-29983,-29984,-29984,-29982,-29982,-29983,-29983,-29984,-29985,-29986,-29986,-29987,-29987,-29988,-29988,-29987]} 1. d4 {[%emt 0:00:01]} Nf6 {[%emt 0:00:37]} 2. Nf3 {[%emt 0:00:08]} d5 {[%emt 0:00:07]} 3. c3 {[%emt 0:01:43]} Bg4 {[%emt 0:01:16]} 4. Ne5 {[%emt 0:00:44]} Bf5 {[%emt 0:00:20]} 5. Qb3 {[%emt 0:00:33]} Qc8 {[%emt 0:00:41]} 6. Bf4 {[%emt 0:01:03] D02: 1 d4 d5 2 Nf3 sidelines, including 2...Nf6 3 g3 and 2...Nf6 3 Bf4.} ({Much weaker is} 6. e4 Bxe4 7. Nd2 (7. f3 Bg6 $15) 7... Bg6 $11) 6... e6 {[%emt 0:00:38]} 7. e3 {[%emt 0:02:07]} Be7 {[%emt 0:00:44]} 8. Nd2 {[%emt 0:01:05] The position is equal.} O-O {[%emt 0:01:20]} (8... Nbd7 $11) 9. Be2 {[%emt 0:00:11] [#] And now g4 would win.} h6 $146 {[%emt 0:07:09]} ({Predecessor:} 9... Nbd7 10. O-O Nxe5 11. Bxe5 Nd7 12. Bg3 Nb6 13. Nf3 Bd6 14. Rac1 Bxg3 15. hxg3 c6 {1-0 (63) Herrmann,A (2157)-Wolterink,T (1767) Verden 2014}) 10. O-O {[%emt 0:01:38]} (10. g4 $16 Bh7 11. h4) 10... c5 $11 {[%emt 0:02:01]} 11. dxc5 {[%emt 0:05:24]} Nbd7 {[%emt 0:00:11]} 12. Nxd7 {[%emt 0:01:51]} Nxd7 {[%emt 0:00:28]} 13. Bd6 {[%emt 0:02:24]} Nxc5 {[%emt 0:01:41]} 14. Bxc5 {[%emt 0:00:09]} Qxc5 {[%emt 0:02:12]} 15. Rfd1 {[%emt 0:04:49]} Rab8 {[%emt 0:07:38]} 16. Bf3 {[%emt 0:04:31]} Bg6 {[%emt 0:09:30]} 17. e4 {[%emt 0:02:01]} d4 {[%emt 0:03:45]} 18. cxd4 {[%emt 0:01:50]} Qxd4 {[%emt 0:00:06]} 19. Nc4 {[%emt 0:00:47]} Qc5 {[%emt 0:01:45]} 20. Rd7 {[%emt 0:06:04]} b5 {[%emt 0:19:18]} 21. Ne3 {[%emt 0:12:59]} Rfd8 {[%emt 0:01:10]} 22. Rad1 {[%emt 0:01:41]} Rxd7 {[%emt 0:00:37]} 23. Rxd7 {[%emt 0:00:06]} Bf6 {[%emt 0:05:04][%cal Be7f6,Bf6b2,Bb2c3,Bc3d4][%mdl 32]} 24. g3 {[%emt 0:07:01]} a5 {[%emt 0:03:29]} 25. Qd3 {[%emt 0:04:15]} ({White should play} 25. h4 $15) 25... Bxb2 $17 {[%emt 0:03:41]} 26. Rd8+ {[%emt 0:00:49]} Rxd8 {[%emt 0:00:04]} 27. Qxd8+ {[%emt 0:00:09]} Kh7 {[%emt 0:00:09] aiming for ...Bd4.} 28. Qxa5 {[%emt 0:00:05]} Bc3 {[%emt 0:00:52] Against a4. Black is more active.} 29. Qa6 {[%emt 0:15:24]} (29. Qd8 $17) 29... Bd4 $19 {[%emt 0:00:26]} 30. Nd1 {[%emt 0:00:11]} Bh5 $1 {[%emt 0:10:12] Against h4. A strong pair of Bishops.} 31. g4 {[%emt 0:05:59] [#]} Bxg4 {[%emt 0:01:38][%mdl 512]} 32. Bxg4 {[%emt 0:00:06]} Qg5 {[%emt 0:00:05]} 33. h3 {[%emt 0:00:31]} h5 {[%emt 0:00:05][%mdl 64] Pin} 34. Qa3 {[%emt 0:02:24][%cal Oa3f3]} ({Reject} 34. Qd6 Be5 35. Qd3 hxg4 36. hxg4 Qxg4+ 37. Kf1 b4) 34... hxg4 {[%emt 0:01:45][%mdl 4096] Endgame KQB-KQN} 35. Qg3 {[%emt 0:00:21]} f5 {[%emt 0:01:13]} 36. exf5 {[%emt 0:01:11]} exf5 {[%emt 0:00:19] Strongly threatening ...Qd2.} 37. hxg4 $2 {[%emt 0:02:51][%mdl 8192] White does not recover from this.} (37. Kf1 $17) 37... Qxg4 {[%emt 0:00:41] Black mates.} 38. Qxg4 {[%emt 0:01:40]} fxg4 $17 {[%emt 0:00:01] KB-KN} 39. Kf1 {[%emt 0:04:08]} Kg6 {[%emt 0:00:16]} 40. Ke2 {[%emt 0:00:06]} Kf5 {[%emt 0:00:05]} 41. Kd3 {[%emt 0:01:09]} Ke5 {[%emt 0:00:06]} 42. Kd2 {[%emt 0:00:25]} Ke4 {[%emt 0:00:06]} 43. Ke2 {[%emt 0:00:05]} b4 {[%emt 0:00:29]} 44. Kd2 {[%emt 0:02:21]} Kf3 {[%emt 0:00:18]} 45. Ke1 {[%emt 0:00:06]} g5 {[%emt 0:00:20]} 46. Kf1 {[%emt 0:00:13]} g3 {[%emt 0:00:17]} 47. fxg3 {[%emt 0:00:04]} Kxg3 {[%emt 0:00:22]} 48. Ke2 {[%emt 0:00:28]} Kf4 {[%emt 0:00:08]} 49. Kd3 {[%emt 0:00:25] [#]} Ke5 $1 {[%emt 0:00:05]} 50. Kd2 {[%emt 0:02:36]} Ke4 {[%emt 0:00:10]} 51. Ke2 {[%emt 0:00:01]} g4 {[%emt 0:00:11][%cal Bg5g4,Bg4g3,Bg3g2][%mdl 32]} 52. Kd2 {[%emt 0:01:09]} g3 {[%emt 0:00:14]} 53. Ke2 {[%emt 0:00:05]} g2 {[%emt 0:00:12] Weighted Error Value: White=0.20 (precise) /Black=0.05 (flawless)} 0-1